fUSD/lending_fUSD_20240428
["ID","MTS","AMOUNT","RATE_DAILY","PERIOD"]
[323772663,1714279832308,-150.0,0.00019116,2]
[323772664,1714279832318,-152.53,0.00019121,2]
[323772665,1714279832327,-169.2,0.0001918,10]
[323772666,1714279832337,-150.0,0.00019196,2]
[323772667,1714279832348,-152.53,0.00019202,2]
[323772668,1714279832358,-8157.76,0.00019267,2]
[323772669,1714279832370,-150.0,0.0001927,3]
[323772670,1714279832380,-152.53,0.00019283,2]
[323772671,1714279832391,-250.0,0.00019291,2]
[323772672,1714279832408,-22863.12,0.000193,2]
[323772673,1714279832419,-152.53,0.00019364,2]
[323772674,1714279832429,-150.0,0.0001938,2]
[323772675,1714279832439,-545.8,0.00019406,2]
[323772676,1714279832449,-151.52,0.00019423,2]
[323772677,1714279832459,-1464.07,0.00019439,2]
[323772678,1714279832469,-500.0,0.0001944,2]
[323772679,1714279832480,-152.53,0.00019445,2]
[323772680,1714279832490,-8310.5604403,0.00019471,2]
[323772681,1714279832500,-777.15,0.00019484,2]
[323772682,1714279832511,-150.0,0.00019511,2]
[323772683,1714279832521,-152.53,0.00019526,2]
[323772684,1714279832531,-161.45,0.00019539,2]
[323772685,1714279832541,-150.0,0.00019567,2]
[323772686,1714279832553,-200.0,0.00019595,2]
[323772687,1714279832563,-152.53,0.00019607,2]
[323772688,1714279832574,-210.0,0.0001966,2]
[323772689,1714279832585,-1000.0,0.000198,2]
[323772690,1714279832596,-150.0,0.00019815,2]
[323772691,1714279832606,-150.0,0.00019882,2]
[323772692,1714279832616,-150.0,0.00019905,2]
[323772693,1714279832626,-47439.37811257,0.00019997,2]
[323772694,1714279832636,-150.0,0.0002002,3]
[323772695,1714279832646,-150.0,0.00020175,2]
[323772696,1714279832657,-499.99,0.00020184,2]
[323772697,1714279832667,-150.0,0.00020237,2]
[323772698,1714279832676,-170.25,0.00020254,2]
[323772699,1714279832686,-160.7,0.00020278,2]
[323772700,1714279832696,-1000.0,0.00020357,2]
[323772701,1714279832706,-150.0,0.00020451,2]
[323772702,1714279832716,-150.0,0.00020456,2]
[323772703,1714279832726,-161.31,0.00020474,2]
[323772704,1714279832735,-1000.0,0.00020498,2]
[323772705,1714279832745,-1004.0,0.000205,2]
[323772706,1714279832755,-150.0,0.000205,2]
[323772707,1714279832764,-155.0,0.00020501,2]
[323772708,1714279832773,-167.36990592,0.00020511,2]
[323772709,1714279832784,-150.0,0.00020515,2]
[323772710,1714279832794,-753.95,0.00020547,2]
[323772711,1714279832803,-300.0,0.00020562,2]
[323772712,1714279832813,-167.82,0.00020603,2]
[323772713,1714279832822,-1395.0,0.00020611,2]
[323772714,1714279832832,-2297.0,0.00020611,2]
[323772715,1714279832841,-970.0,0.00020611,2]
[323772716,1714279832850,-462.0,0.00020611,2]
[323772717,1714279832860,-1257.0,0.00020611,2]
[323772718,1714279832872,-542.0,0.00020611,2]
[323772719,1714279832881,-809.197,0.00020611,2]
[323772720,1714279832890,-610.0,0.00020611,2]
[323772721,1714279832899,-1860.0,0.00020611,2]
[323772722,1714279832909,-439.255,0.00020611,2]
[323772723,1714279832919,-308.11,0.00020611,2]
[323772724,1714279832929,-420.0,0.00020611,2]
[323772725,1714279832938,-150.641,0.00020611,2]
[323772726,1714279832948,-3131.0,0.00020611,2]
[323772727,1714279832958,-1478.191,0.00020611,2]
[323772728,1714279832968,-2447.0,0.00020611,2]
[323772729,1714279832978,-445.02,0.00020611,2]
[323772730,1714279832987,-150.492,0.00020611,2]
[323772731,1714279832996,-215.0,0.00020611,2]
[323772732,1714279833005,-1642.0,0.00020611,2]
[323772733,1714279833014,-1139.0,0.00020611,2]
[323772734,1714279833023,-5734.0,0.00020611,2]
[323772735,1714279833033,-37726.0,0.00020611,2]
[323772736,1714279833042,-5897.0,0.00020611,2]
[323772737,1714279833051,-212.1,0.00020611,2]
[323772738,1714279833061,-150.0,0.00020646,2]
[323772739,1714279833070,-246.58960536,0.00020652,2]
[323772740,1714279833080,-150.0,0.00020654,2]
[323772741,1714279833090,-157.61947715,0.00020662,2]
[323772742,1714279833101,-2113.83323703,0.00020662,2]
[323772743,1714279833110,-672.65,0.0002076,2]
[323772744,1714279833121,-302.34,0.00020767,2]
[323772745,1714279833130,-418.48,0.00020778,2]
[323772746,1714279833140,-150.0,0.00020778,2]
[323772747,1714279833150,-13434.60016069,0.0002078,2]
[323772748,1714279833161,-708.99534153,0.0002079,2]
[323772749,1714279833171,-150.0,0.00020795,2]
[323772750,1714279833180,-150.0,0.00020809,2]
[323772751,1714279833191,-150.0,0.0002081,2]
[323772752,1714279833201,-753.95,0.00020821,2]
[323772753,1714279833211,-381.6,0.00020823,2]
[323772754,1714279833221,-150.0,0.00020836,2]
[323772755,1714279833230,-150.0,0.00020842,2]
[323772756,1714279833240,-150.0,0.00020859,2]
[323772757,1714279833250,-150.0,0.00020877,2]
[323772758,1714279833260,-150.0,0.00020878,2]
[323772759,1714279833269,-329.63,0.00020878,2]
[323772760,1714279833279,-419.34,0.00020878,2]
[323772761,1714279833288,-7500.0,0.00020879,2]
[323772762,1714279833298,-165.76896418,0.00020879,2]
[323772763,1714279833308,-169.38470817,0.0002088,2]
[323772764,1714279833317,-199.00022202,0.0002088,2]
[323772765,1714279833327,-174.54400576,0.0002088,2]
[323772766,1714279833337,-151.29703378,0.0002088,2]
[323772767,1714279833347,-11580.14405434,0.0002088,2]
[323772768,1714279833357,-173.71415482,0.00020897,2]
[323772769,1714279833367,-263.5491216,0.00020897,2]
[323772770,1714279833378,-500.0,0.00020899,2]
[323772771,1714279833387,-512.9575,0.00020899,2]
[323772772,1714279833402,-1500.0,0.00020899,2]
[323772773,1714279833411,-150.0,0.00020905,2]
[323772774,1714279833420,-210.78,0.00020967,2]
[323772775,1714279833430,-190.39113468,0.00020969,2]
[323772776,1714279833439,-210.78,0.00020969,2]
[323772777,1714279833449,-210.78,0.00020969,2]
[323772778,1714279833459,-190.39113468,0.00020969,2]
[323772779,1714279833468,-210.78,0.00020969,2]
[323772780,1714279833480,-210.78,0.00020969,2]
[323772781,1714279833490,-210.78,0.00020969,2]
[323772782,1714279833500,-210.78,0.00020969,2]
[323772783,1714279833509,-210.78,0.00020969,2]
[323772784,1714279833519,-210.78,0.00020969,2]
[323772785,1714279833528,-210.78,0.00020969,2]
[323772786,1714279833538,-151.29703378,0.0002097,2]
[323772787,1714279833548,-190.39113468,0.0002097,2]
[323772788,1714279833557,-764.93142913,0.00020976,2]
[323772789,1714279833566,-39.79427165,0.00020976,2]
[323772790,1714279833609,-460.20572835,0.00020976,2]
[323772791,1714279833619,-1320.71,0.00020976,2]
[323772792,1714279833628,-822.52,0.00020976,2]
[323772793,1714279833638,-744.11,0.00020976,2]
[323772794,1714279833648,-1297.11,0.00020976,2]
[323772795,1714279833657,-199.85948,0.00020977,2]
[323772796,1714279833667,-2760.34,0.00020977,2]
[323772797,1714279833676,-615.85,0.00020977,2]
[323772798,1714279833685,-2522.03,0.00020977,2]
[323772799,1714279833695,-500.0,0.00020977,2]
[323772800,1714279833704,-2508.02,0.00020977,2]
[323772801,1714279833714,-3124.05,0.00020977,2]
[323772802,1714279833724,-879.18,0.00020977,2]
[323772803,1714279833734,-11953.91,0.00020977,2]
[323772804,1714279833743,-3417.24,0.00020977,2]
[323772805,1714279833753,-1550.65,0.00020977,2]
[323772806,1714279833763,-3012.97,0.00020977,2]
[323772807,1714279833772,-12141.71,0.00020977,2]
[323772808,1714279833781,-1773.73,0.00020977,2]
[323772809,1714279833790,-2549.19,0.00020977,2]
[323772810,1714279833800,-5322.3,0.00020977,2]
[323772811,1714279833810,-4378.24,0.00020977,2]
[323772812,1714279833819,-2223.23,0.00020977,2]
[323772813,1714279833828,-1267.96582905,0.00020977,2]
[323772814,1714279833849,-739.92417095,0.00020977,2]
[323772815,1714279833858,-2197.34,0.00020977,2]
[323772816,1714279833869,-4239.14062358,0.00020977,2]
[323772817,1714279833880,-1453.87880451,0.00020977,2]
[323772818,1714279833900,-861.87782854,0.00020977,2]
[323772819,1714279833911,-4937.08815957,0.00020977,2]
[323772820,1714279833935,-1329.28402773,0.00020977,2]
[323772821,1714279833946,-141.65055607,0.00020977,2]
[323772822,1714279833955,-9676.82,0.00020977,2]
[323772823,1714279833965,-1070.02,0.00020977,2]
[323772824,1714279833974,-500.0,0.00020977,2]
[323772825,1714279833984,-1369.65884698,0.00020977,2]
[323772826,1714279833995,-261.62382088,0.00020977,2]
[323772827,1714279834007,-533.44733214,0.00020977,2]
[323772828,1714279834016,-96.55181,0.00020977,2]
[323772829,1714279834036,-403.44819,0.00020977,2]
[323772830,1714279834046,-500.0,0.00020978,2]
[323772831,1714279834055,-533.31,0.00020978,2]
[323772832,1714279834064,-500.0,0.00020978,2]
[323772833,1714279834073,-500.0,0.00020978,2]
[323772834,1714279834083,-500.0,0.00020978,2]
[323772835,1714279834094,-500.0,0.00020978,2]
[323772836,1714279834103,-748.0,0.00020978,2]
[323772837,1714279834113,-565.28,0.00020978,2]
[323772838,1714279834126,-500.0,0.00020978,2]
[323772839,1714279834138,-500.0,0.00020978,2]
[323772840,1714279834147,-500.0,0.00020978,2]
[323772841,1714279834156,-500.0,0.00020978,2]
[323772842,1714279834165,-804.52,0.00020978,2]
[323772843,1714279834174,-647.77,0.00020978,2]
[323772844,1714279834183,-532.19618235,0.00020978,2]
[323772845,1714279834193,-1139.73,0.00020978,2]
[323772846,1714279834202,-299.979416,0.00020978,2]
[323772847,1714279834212,-500.0,0.00020978,2]
[323772848,1714279834221,-1090.65,0.00020978,2]
[323772849,1714279834231,-500.0,0.00020978,2]
[323772850,1714279834240,-500.0,0.00020978,2]
[323772851,1714279834249,-740.52,0.00020978,2]
[323772852,1714279834258,-789.57,0.00020978,2]
[323772853,1714279834268,-500.0,0.00020978,2]
[323772854,1714279834277,-653.44,0.00020978,2]
[323772855,1714279834287,-977.3686707,0.00020978,2]
[323772856,1714279834301,-595.9013293,0.00020978,2]
[323772857,1714279834311,-500.0,0.00020978,2]
[323772858,1714279834321,-749.39029637,0.00020978,2]
[323772859,1714279834340,-45.70970363,0.00020978,2]
[323772860,1714279834350,-229.31152891,0.00020978,2]
[323772861,1714279834544,-615.35847109,0.00020978,2]
[323772862,1714279834581,-33.20810677,0.00020978,2]
[323772863,1714279834701,-403.16264947,0.00020978,2]
[323772864,1714279834721,-63.62924376,0.00020978,2]
[323772865,1714279834731,-301.07075624,0.00020978,2]
[323772877,1714279838315,-200.0,0.00018581,2]
[323772878,1714279838325,-198.92924376,0.00020978,2]
[323772879,1714279838334,-500.0,0.00020978,2]
[323772880,1714279838343,-500.0,0.00020978,2]
[323772881,1714279838352,-369.64638852,0.00020978,2]
[323772882,1714279838364,-130.35361148,0.00020978,2]
[323772883,1714279838375,-500.0,0.00020978,2]
[323772884,1714279838384,-500.0,0.00020978,2]
[323772885,1714279838394,-500.0,0.00020978,2]
[323772886,1714279838405,-500.0,0.00020978,2]
[323772887,1714279838414,-907.83,0.00020978,2]
[323772888,1714279838423,-589.19,0.00020978,2]
[323772889,1714279838432,-615.01,0.00020978,2]
[323772890,1714279838441,-500.0,0.00020978,2]
[323772891,1714279838450,-500.0,0.00020978,2]
[323772892,1714279838459,-500.0,0.00020978,2]
[323772893,1714279838468,-500.0,0.00020978,2]
[323772894,1714279838477,-628.05,0.00020978,2]
[323772895,1714279838487,-501.30105907,0.00020978,2]
[323772896,1714279838496,-784.6,0.00020978,2]
[323772897,1714279838506,-500.0,0.00020978,2]
[323772898,1714279838515,-500.0,0.00020978,2]
[323772899,1714279838524,-500.0,0.00020978,2]
[323772900,1714279838533,-500.0,0.00020978,2]
[323772901,1714279838542,-500.0,0.00020978,2]
[323772902,1714279838552,-500.0,0.00020978,2]
[323772903,1714279838561,-500.0,0.00020978,2]
[323772904,1714279838571,-1279.49,0.00020978,2]
[323772905,1714279838580,-500.0,0.00020978,2]
[323772906,1714279838589,-500.0,0.00020978,2]
[323772907,1714279838599,-317.19138014,0.00020978,2]
[323772908,1714279838610,-182.80861986,0.00020978,2]
[323772909,1714279838621,-282.137745,0.00020978,2]
[323772910,1714279838632,-217.862255,0.00020978,2]
[323772911,1714279838641,-528.02,0.00020978,2]
[323772912,1714279838650,-500.0,0.00020978,2]
[323772913,1714279838659,-502.36536049,0.00020978,2]
[323772914,1714279838668,-110.88452524,0.00020978,2]
[323772915,1714279838679,-1057.42547476,0.00020978,2]
[323772916,1714279838689,-500.51967164,0.00020978,2]
[323772917,1714279838698,-500.0,0.00020978,2]
[323772918,1714279838707,-604.91,0.00020978,2]
[323772919,1714279838717,-500.0,0.00020978,2]
[323772920,1714279838726,-793.72,0.00020978,2]
[323772921,1714279838735,-500.0,0.00020978,2]
[323772922,1714279838744,-500.0,0.00020978,2]
[323772923,1714279838754,-767.61,0.00020978,2]
[323772924,1714279838763,-635.08,0.00020978,2]
[323772925,1714279838773,-587.97,0.00020978,2]
[323772926,1714279838782,-500.0,0.00020978,2]
[323772927,1714279838792,-500.0,0.00020978,2]
[323772928,1714279838802,-500.0,0.00020978,2]
[323772929,1714279838813,-1206.91,0.00020978,2]
[323772930,1714279838824,-500.0,0.00020978,2]
[323772931,1714279838833,-500.0,0.00020978,2]
[323772932,1714279838843,-570.36,0.00020978,2]
[323772933,1714279838852,-1042.16,0.00020978,2]
[323772934,1714279838862,-500.0,0.00020978,2]
[323772935,1714279838874,-500.0,0.00020978,2]
[323772936,1714279838883,-500.0,0.00020978,2]
[323772937,1714279838893,-500.0,0.00020978,2]
[323772938,1714279838902,-500.0,0.00020978,2]
[323772939,1714279838911,-563.09,0.00020978,2]
[323772940,1714279838920,-500.0,0.00020978,2]
[323772941,1714279838929,-500.0,0.00020978,2]
[323772942,1714279838938,-500.0,0.00020978,2]
[323772943,1714279838947,-500.0,0.00020978,2]
[323772944,1714279838956,-1012.88,0.00020978,2]
[323772945,1714279838965,-500.0,0.00020978,2]
[323772946,1714279838975,-500.0,0.00020978,2]
[323772947,1714279838985,-594.52,0.00020978,2]
[323772948,1714279838994,-500.0,0.00020978,2]
[323772949,1714279839003,-500.0,0.00020978,2]
[323772950,1714279839013,-500.0,0.00020978,2]
[323772951,1714279839022,-500.0,0.00020978,2]
[323772952,1714279839032,-500.0,0.00020978,2]
[323772953,1714279839042,-729.37,0.00020978,2]
[323772954,1714279839051,-1496.55,0.00020978,2]
[323772955,1714279839061,-500.0,0.00020978,2]
[323772956,1714279839071,-500.0,0.00020978,2]
[323772957,1714279839081,-500.0,0.00020978,2]
[323772958,1714279839091,-500.0,0.00020978,2]
[323772959,1714279839102,-500.0,0.00020978,2]
[323772960,1714279839112,-500.0,0.00020978,2]
[323772961,1714279839125,-684.74,0.00020978,2]
[323772962,1714279839136,-500.0,0.00020978,2]
[323772963,1714279839146,-500.0,0.00020978,2]
[323772964,1714279839157,-503.56727164,0.00020978,2]
[323772965,1714279839168,-510.94509767,0.00020978,2]
[323772966,1714279839179,-500.0,0.00020978,2]
[323772967,1714279839190,-500.0,0.00020978,2]
[323772968,1714279839201,-500.0,0.00020978,2]
[323772969,1714279839213,-500.0,0.00020978,2]
[323772970,1714279839225,-500.0,0.00020978,2]
[323772971,1714279839236,-500.0,0.00020978,2]
[323772972,1714279839247,-190.94,0.00020978,2]
[323772973,1714279839258,-500.0,0.00020978,2]
[323772974,1714279839268,-500.0,0.00020978,2]
[323772975,1714279839279,-500.0,0.00020978,2]
[323772976,1714279839290,-500.0,0.00020978,2]
[323772977,1714279839301,-500.0,0.00020978,2]
[323772978,1714279839312,-979.88,0.00020978,2]
[323772979,1714279839322,-500.0,0.00020978,2]
[323772980,1714279839333,-557.66,0.00020978,2]
[323772981,1714279839343,-500.0,0.00020978,2]
[323772982,1714279839353,-650.3774609,0.00020978,2]
[323772983,1714279839363,-555.45,0.00020978,2]
[323772984,1714279839375,-1232.25,0.00020978,2]
[323772985,1714279839384,-500.0,0.00020978,2]
[323772986,1714279839394,-500.0,0.00020978,2]
[323772987,1714279839406,-1009.03,0.00020978,2]
[323772988,1714279839416,-500.0,0.00020978,2]
[323772989,1714279839427,-500.0,0.00020978,2]
[323772990,1714279839436,-500.0,0.00020978,2]
[323772991,1714279839447,-500.0,0.00020978,2]
[323772992,1714279839457,-500.0,0.00020978,2]
[323772993,1714279839467,-633.56304055,0.00020978,2]
[323772994,1714279839478,-1202.19,0.00020978,2]
[323772995,1714279839489,-500.0,0.00020978,2]
[323772996,1714279839500,-155.0,0.00020979,2]
[323772997,1714279839510,-465.40110721,0.00020979,2]
[323772998,1714279839521,-500.0,0.00020979,2]
[323772999,1714279839532,-500.0,0.00020979,2]
[323773000,1714279839542,-500.0,0.00020979,2]
[323773001,1714279839552,-500.0,0.00020979,2]
[323773002,1714279839562,-207.00271,0.00020979,2]
[323773003,1714279839572,-441.04684852,0.00020979,2]
[323773004,1714279839582,-199.85948,0.00020979,2]
[323773005,1714279839592,-608.40943098,0.00020979,2]
[323773006,1714279839602,-153.3921509,0.00020979,2]
[323773007,1714279839611,-2402.23,0.00020979,2]
[323773008,1714279839622,-500.0,0.00020979,2]
[323773011,1714279839634,-203.8566696,0.00020979,2]
[323773013,1714279839644,-199.85948,0.00020979,2]
[323773015,1714279839654,-200.41668823,0.00020979,2]
[323773017,1714279839664,-1067.34,0.00020979,2]
[323773018,1714279839674,-210.48770735,0.00020979,2]
[323773020,1714279839683,-154.891097,0.00020979,2]
[323773022,1714279839693,-199.85948,0.00020979,2]
[323773024,1714279839702,-1413.14,0.00020979,2]
[323773026,1714279839711,-743.47,0.00020979,2]
[323773029,1714279839721,-199.85948,0.00020979,2]
[323773032,1714279839731,-200.65891792,0.00020979,2]
[323773035,1714279839741,-199.85948,0.00020979,2]
[323773037,1714279839750,-1425.9,0.00020979,2]
[323773039,1714279839759,-500.0,0.00020979,2]
[323773041,1714279839769,-1214.22,0.00020979,2]
[323773043,1714279839778,-500.0,0.00020979,2]
[323773045,1714279839789,-500.0,0.00020979,2]
[323773047,1714279839798,-500.0,0.00020979,2]
[323773049,1714279839807,-500.0,0.00020979,2]
[323773050,1714279839817,-533.52,0.00020979,2]
[323773051,1714279839826,-1710.18,0.00020979,2]
[323773052,1714279839836,-639.04,0.00020979,2]
[323773053,1714279839845,-504.60371836,0.00020979,2]
[323773054,1714279839856,-1668.26,0.00020979,2]
[323773055,1714279839867,-1575.81,0.00020979,2]
[323773056,1714279839879,-500.0,0.00020979,2]
[323773057,1714279839890,-1954.72,0.00020979,2]
[323773058,1714279839900,-730.66,0.00020979,2]
[323773059,1714279839910,-689.45,0.00020979,2]
[323773060,1714279839919,-500.0,0.00020979,2]
[323773061,1714279839929,-740.52,0.00020979,2]
[323773062,1714279839939,-740.52,0.00020979,2]
[323773063,1714279839949,-740.52,0.00020979,2]
[323773064,1714279839958,-740.52,0.00020979,2]
[323773065,1714279839968,-740.52,0.00020979,2]
[323773066,1714279839980,-740.52,0.00020979,2]
[323773067,1714279839990,-740.52,0.00020979,2]
[323773068,1714279839999,-740.52,0.00020979,2]
[323773069,1714279840009,-740.52,0.00020979,2]
[323773070,1714279840019,-740.52,0.00020979,2]
[323773071,1714279840029,-740.52,0.00020979,2]
[323773072,1714279840039,-740.52,0.00020979,2]
[323773073,1714279840049,-740.52,0.00020979,2]
[323773074,1714279840059,-740.52,0.00020979,2]
[323773075,1714279840068,-740.52,0.00020979,2]
[323773076,1714279840078,-740.52,0.00020979,2]
[323773077,1714279840088,-2128.37,0.00020979,2]
[323773078,1714279840097,-500.0,0.00020979,2]
[323773079,1714279840107,-588.77,0.00020979,2]
[323773080,1714279840117,-5391.15,0.00020979,2]
[323773081,1714279840129,-2907.87,0.00020979,2]
[323773082,1714279840138,-699.96,0.00020979,2]
[323773083,1714279840148,-15666.03,0.00020979,2]
[323773084,1714279840157,-1648.2,0.00020979,2]
[323773085,1714279840168,-6597.67,0.00020979,2]
[323773086,1714279840178,-3941.48,0.00020979,2]
[323773087,1714279840189,-1827.35,0.00020979,2]
[323773088,1714279840200,-2898.87,0.00020979,2]
[323773089,1714279840210,-3093.09,0.00020979,2]
[323773090,1714279840221,-44722.34,0.00020979,2]
[323773091,1714279840231,-2839.85,0.00020979,2]
[323773092,1714279840242,-4844.61,0.00020979,2]
[323773093,1714279840254,-6517.26,0.00020979,2]
[323773094,1714279840264,-1843.07,0.00020979,2]
[323773095,1714279840274,-1262.2,0.00020979,2]
[323773096,1714279840283,-26419.25,0.00020979,2]
[323773097,1714279840293,-500.0,0.00020979,2]
[323773098,1714279840303,-1918.59,0.00020979,2]
[323773099,1714279840313,-14679.67,0.00020979,2]
[323773100,1714279840323,-1516.64,0.00020979,2]
[323773101,1714279840335,-1717.33,0.00020979,2]
[323773102,1714279840346,-678.8,0.00020979,2]
[323773103,1714279840356,-2701.8,0.00020979,2]
[323773104,1714279840367,-2268.14,0.00020979,2]
[323773105,1714279840380,-500.0,0.00020979,2]
[323773106,1714279840390,-500.0,0.00020979,2]
[323773107,1714279840402,-2213.78,0.00020979,2]
[323773108,1714279840411,-500.0,0.00020979,2]
[323773109,1714279840422,-486.21055046,0.00020979,2]
[323773110,1714279840432,-503.58868826,0.00020979,2]
[323773111,1714279840443,-500.0,0.00020979,2]
[323773112,1714279840453,-2633.25,0.00020979,2]
[323773113,1714279840463,-500.0,0.00020979,2]
[323773114,1714279840475,-2591.99,0.00020979,2]
[323773115,1714279840485,-2787.7,0.00020979,2]
[323773116,1714279840495,-7970.47,0.00020979,2]
[323773117,1714279840507,-9124.87,0.00020979,2]
[323773118,1714279840517,-500.0,0.00020979,2]
[323773119,1714279840528,-1215.51,0.00020979,2]
[323773120,1714279840538,-3129.24,0.00020979,2]
[323773121,1714279840548,-913.83,0.00020979,2]
[323773122,1714279840558,-500.0,0.00020979,2]
[323773123,1714279840570,-3396.53,0.00020979,2]
[323773124,1714279840581,-629.64,0.00020979,2]
[323773125,1714279840591,-2826.97,0.00020979,2]
[323773126,1714279840602,-500.0,0.00020979,2]
[323773127,1714279840613,-555.19,0.00020979,2]
[323773128,1714279840623,-2263.88,0.00020979,2]
[323773129,1714279840634,-500.0,0.00020979,2]
[323773130,1714279840645,-4065.01,0.00020979,2]
[323773131,1714279840656,-3780.14,0.00020979,2]
[323773132,1714279840668,-1090.41,0.00020979,2]
[323773133,1714279840680,-1216.98,0.00020979,2]
[323773134,1714279840691,-2791.93,0.00020979,2]
[323773135,1714279840704,-500.0,0.00020979,2]
[323773136,1714279840717,-4812.81,0.00020979,2]
[323773137,1714279840727,-5808.68,0.00020979,2]
[323773138,1714279840738,-500.0,0.00020979,2]
[323773139,1714279840749,-788.07,0.00020979,2]
[323773140,1714279840759,-1692.52,0.00020979,2]
[323773141,1714279840770,-3156.47,0.00020979,2]
[323773142,1714279840780,-1006.35,0.00020979,2]
[323773143,1714279840792,-3636.22,0.00020979,2]
[323773144,1714279840803,-2606.03,0.00020979,2]
[323773145,1714279840813,-1579.92,0.00020979,2]
[323773146,1714279840823,-172330.68772406,0.00020979,2]
[323773147,1714279840838,-685728.918389,0.00020979,2]
[323773148,1714279840850,-433170.43492301,0.00020979,2]
[323773149,1714279840862,-1009.61704064,0.00020979,2]
[323773150,1714279841642,-150.176,0.00020611,2]
[323773151,1714279841653,-1321.96,0.00020976,2]
[323773152,1714279841663,-500.0,0.00020977,2]
[323773153,1714279841673,-500.0,0.00020978,2]
[323773154,1714279841683,-26872.09616804,0.00020979,2]
[323773155,1714279841695,-10169.04657834,0.00020979,2]
[323773156,1714279841707,-6143.75419523,0.00020979,2]
[323773157,1714279841719,-34791.1622512,0.00020979,2]
[323773188,1714279845815,-1496.51611979,0.00020897,2]
[323773190,1714279846026,-1113.35345286,0.00020897,2]
[323773238,1714281031881,-155.0,0.00010999,2]
[323773239,1714281031890,-200.0,0.00011,2]
[323773240,1714281031900,-348.37788318,0.00014899,2]
[323773241,1714281031912,-107.78405741,0.00014899,2]
[323773242,1714281031921,-162.28826086,0.000149,2]
[323773243,1714281031931,-4857.0,0.00015,2]
[323773244,1714281031941,-348.51,0.00016788,2]
[323773245,1714281031952,-211.509505,0.00017874,2]
[323773246,1714281031961,-150.0,0.00018227,2]
[323773247,1714281031971,-500.0,0.00018454,2]
[323773248,1714281031980,-150.0,0.0001849,2]
[323773249,1714281031990,-454.82,0.0001853,2]
[323773250,1714281032000,-250.0,0.0001856,2]
[323773251,1714281032010,-161.45,0.00018585,2]
[323773252,1714281032020,-299.99,0.00018585,4]
[323773253,1714281032030,-499.99,0.00018585,2]
[323773254,1714281032040,-4604.80757978,0.00018585,2]
[323773255,1714281032052,-463.05,0.00018585,2]
[323773256,1714281032088,-440.28417427,0.00018585,2]
[323773257,1714281032100,-531.76294828,0.00018585,2]
[323773258,1714281032113,-591.826501,0.00018585,2]
[323773259,1714281032142,-421.94944597,0.00018585,2]
[323773260,1714281032154,-1007.15591784,0.00018585,2]
[323773261,1714281032177,-5612.18071053,0.00018585,2]
[323773262,1714281032188,-1633.10754973,0.00018585,2]
[323773263,1714281032205,-1262.7551726,0.00018585,2]
[323773264,1714281032214,-200.0,0.00018591,2]
[323773265,1714281032224,-169.2,0.00018591,10]
[323773266,1714281032233,-19317.98,0.00018603,2]
[323773267,1714281032242,-560.54,0.00018662,2]
[323773268,1714281032252,-228.96,0.00018724,2]
[323773269,1714281032261,-160.42,0.00018727,2]
[323773270,1714281032270,-4212.97,0.00018738,6]
[323773271,1714281032279,-1039.32,0.0001874,2]
[323773272,1714281032289,-765.81,0.00018761,2]
[323773273,1714281032297,-150.79,0.00018824,2]